bitfinex/quotes_BTCUSD_20250313
["timestamp","ask_amount","ask_price","bid_price","bid_amount"]
[1741878145809,0.012162,82219.0,82218.0,0.12103859]
[1741878146009,0.012162,82219.0,82218.0,0.0003376]
[1741878146271,0.012162,82219.0,82218.0,0.0013376]
[1741878146842,0.02267413,82222.0,82218.0,0.0003376]
[1741878147048,0.02267413,82222.0,82221.0,0.012162]
[1741878147271,0.01216,82233.0,82225.0,0.012161]
[1741878147422,0.012161,82227.0,82221.0,0.13186299]
[1741878147629,0.243224,82229.0,82224.0,0.255396]
[1741878147883,0.300169,82236.0,82233.0,0.01216]
[1741878147884,0.000169,82236.0,82233.0,0.01216]
[1741878148247,0.012161,82226.0,82217.0,0.012162]
[1741878148448,0.243252,82219.0,82218.0,0.12203859]
[1741878148636,0.255408,82222.0,82218.0,0.0043376]
[1741878148980,0.255414,82219.0,82218.0,0.0023376]
[1741878149178,0.25357957,82219.0,82218.0,0.0023376]
[1741878149380,0.25357957,82219.0,82218.0,0.0003376]
[1741878149582,0.02265158,82219.0,82218.0,0.0003376]
[1741878149779,0.02265158,82219.0,82218.0,0.2557546]
[1741878149983,0.04170513,82219.0,82218.0,0.38999644]
[1741878150219,0.02265158,82219.0,82218.0,0.38999644]
[1741878150625,0.02265158,82219.0,82218.0,0.39199644]
[1741878151231,0.02265158,82227.0,82226.0,0.26993385]
[1741878151457,0.012161,82225.0,82221.0,0.243246]
[1741878151659,0.26588058,82227.0,82222.0,0.11970099]
[1741878151866,0.02261158,82227.0,82224.0,0.012161]
[1741878152089,0.02261158,82227.0,82224.0,0.13186199]
[1741878152297,0.243232,82226.0,82224.0,0.11970099]
[1741878152485,0.012161,82225.0,82224.0,0.11970099]
[1741878153061,0.255405,82222.0,82221.0,0.001]
[1741878153222,0.255398,82225.0,82218.0,0.0124996]
[1741878153425,0.012162,82219.0,82218.0,0.0003376]
[1741878154089,0.255403,82223.0,82218.0,0.0003376]
[1741878154295,0.255414,82219.0,82218.0,0.0003376]
[1741878154496,0.243249,82221.0,82218.0,0.0003376]
[1741878154893,0.0362404,82219.0,82218.0,0.0003376]
[1741878155200,0.0484024,82219.0,82218.0,0.0003376]
[1741878155555,0.0484024,82219.0,82218.0,0.0023376]
[1741878155768,0.0484024,82219.0,82218.0,0.0003376]
[1741878156102,0.07749553,82219.0,82218.0,0.0033376]
[1741878157207,0.05844105,82219.0,82218.0,0.0053376]
[1741878158308,0.35844105,82219.0,82218.0,0.0053376]
[1741878159135,0.36976736,82219.0,82218.0,0.0053376]
[1741878161428,0.47395952,82219.0,82218.0,0.0053376]
[1741878161876,0.312162,82217.0,82216.0,0.0003376]
[1741878162865,0.312163,82215.0,82214.0,0.0003376]
[1741878163619,0.40892234,82215.0,82214.0,0.0003376]
[1741878163976,0.48762234,82215.0,82214.0,0.0003376]
[1741878164934,0.54652425,82215.0,82214.0,0.0003376]
[1741878165283,0.54952425,82215.0,82214.0,0.0003376]
[1741878165490,0.38539122,82215.0,82214.0,0.0003376]
[1741878165916,0.39039122,82215.0,82214.0,0.0003376]
[1741878166122,0.38739122,82215.0,82214.0,0.0003376]
[1741878166492,0.33348931,82215.0,82214.0,0.0003376]
[1741878166688,0.322163,82215.0,82214.0,0.0003376]
[1741878167074,0.40759603,82215.0,82214.0,0.0003376]
[1741878167278,0.40259603,82215.0,82214.0,0.0003376]
[1741878167481,0.47283384,82215.0,82214.0,0.0003376]
[1741878167963,0.49189167,82215.0,82214.0,0.0003376]
[1741878168178,0.49689167,82215.0,82214.0,0.0003376]
[1741878168401,0.49189167,82215.0,82214.0,0.0003376]
[1741878168809,0.49589167,82215.0,82214.0,0.0003376]
[1741878169271,0.49089167,82215.0,82214.0,0.0003376]
[1741878169635,0.49589167,82215.0,82214.0,0.0003376]
[1741878170872,0.49589167,82215.0,82214.0,6e-07]
[1741878171487,0.255479,82198.0,82197.0,6e-07]
[1741878171694,0.555573,82168.0,82155.0,0.0003378]
[1741878171897,0.555573,82168.0,82161.0,0.012171]
[1741878171898,0.01217,82168.0,82161.0,0.012171]
[1741878172077,0.01217,82168.0,82160.0,0.012171]
[1741878172078,0.243403,82168.0,82163.0,0.01217]
[1741878172282,0.255573,82168.0,82155.0,0.0003378]
[1741878172647,0.32506432,82168.0,82155.0,0.0003378]
[1741878172994,0.07023781,82168.0,82162.0,0.012171]
[1741878173178,0.32581081,82168.0,82163.0,0.01454085]
[1741878173376,0.32581081,82168.0,82155.0,0.0003378]
[1741878173586,0.32681081,82168.0,82155.0,0.0003378]
[1741878173787,0.32681081,82168.0,82155.0,0.02705065]
[1741878173993,0.32681081,82168.0,82157.0,0.01454085]
[1741878174206,0.33643551,82168.0,82155.0,0.0003378]
[1741878175297,0.3555025,82168.0,82155.0,0.0003378]
[1741878176014,0.3458778,82168.0,82158.0,0.255604]
[1741878176217,0.32681081,82168.0,82159.0,0.255598]
[1741878176355,0.32681081,82168.0,82161.0,0.01454085]
[1741878176759,0.32581081,82168.0,82160.0,0.01454085]
[1741878176973,0.07023781,82168.0,82167.0,0.13457964]
[1741878177173,0.08240781,82168.0,82167.0,0.13457964]
[1741878177376,0.04815607,82168.0,82167.0,0.0003378]
[1741878177959,0.03598607,82168.0,82167.0,1.5003378]
[1741878178388,0.27938907,82168.0,82167.0,1.5003378]
[1741878178847,0.01332873,82168.0,82167.0,1.7559138]
[1741878179064,0.01332873,82168.0,82167.0,2.04267564]
[1741878179065,0.01132873,82168.0,82167.0,2.04267564]
[1741878179396,0.05872399,82170.0,82169.0,0.25557]
[1741878179604,0.05872399,82170.0,82169.0,0.38981184]
[1741878180040,0.05872399,82170.0,82169.0,0.51661184]
[1741878180243,0.01906442,82194.0,82193.0,0.012166]
[1741878180492,0.10704378,82215.0,82206.0,0.012164]
[1741878180696,0.012165,82201.0,82193.0,0.11970099]
[1741878180840,0.012165,82201.0,82193.0,0.012166]
[1741878181046,0.012166,82191.0,82190.0,0.15276]
[1741878181247,0.243351,82186.0,82184.0,0.01454085]
[1741878181592,0.243326,82197.0,82160.0,0.0782]
[1741878181593,0.012169,82174.0,82160.0,0.0782]
[1741878181773,0.255573,82168.0,82155.0,0.16248693]
[1741878181976,0.255573,82168.0,82157.0,0.012171]
[1741878182173,0.255566,82171.0,82165.0,0.24341]
[1741878182374,0.255573,82168.0,82155.0,0.0003378]
[1741878182558,0.2668505,82168.0,82155.0,0.0003378]
[1741878183144,0.2668505,82168.0,82155.0,0.2559518]
[1741878183295,0.2668505,82168.0,82155.0,0.0003378]
[1741878183494,0.27755908,82168.0,82155.0,0.0003378]
[1741878183698,0.66647083,82168.0,82155.0,0.0003378]
[1741878184126,0.66847083,82168.0,82155.0,0.0003378]
[1741878184303,0.72712857,82168.0,82155.0,0.0003378]
[1741878184482,0.80552857,82168.0,82167.0,8e-07]
[1741878185315,0.80752857,82168.0,82167.0,8e-07]
[1741878185488,0.71661682,82168.0,82167.0,8e-07]
[1741878185693,0.63621682,82168.0,82167.0,8e-07]
[1741878185903,0.64321682,82168.0,82167.0,8e-07]
[1741878186508,0.64021682,82168.0,82167.0,8e-07]
[1741878186925,0.73412857,82168.0,82167.0,8e-07]
[1741878188396,0.55561,82156.0,82155.0,0.0003378]
[1741878189187,0.57467957,82156.0,82155.0,0.0003378]
[1741878189387,0.58595707,82156.0,82155.0,0.0003378]
[1741878189792,0.58695707,82156.0,82155.0,0.0003378]
[1741878190225,0.58695707,82156.0,82155.0,0.2559518]
[1741878190226,0.09000481,82156.0,82155.0,0.2559518]
[1741878190428,0.09000481,82156.0,82155.0,0.0003378]
[1741878190630,0.34561481,82156.0,82155.0,0.0003378]
[1741878190845,0.09000481,82156.0,82155.0,0.0003378]
[1741878190995,0.09000481,82156.0,82155.0,0.0125098]
[1741878191199,0.09000481,82156.0,82155.0,0.39019364]
[1741878192003,0.09000481,82156.0,82155.0,0.43949364]
[1741878192004,0.06065774,82156.0,82155.0,0.43949364]
[1741878192187,0.05965774,82156.0,82155.0,0.43949364]
[1741878192382,0.02355973,82156.0,82155.0,0.45031694]
[1741878192629,0.02455973,82156.0,82155.0,0.45031694]
[1741878193328,0.02455973,82156.0,82155.0,0.43949364]
[1741878193541,0.28016973,82156.0,82155.0,0.12003879]
[1741878193779,0.28016973,82156.0,82155.0,0.0003378]
[1741878194050,0.27916973,82156.0,82155.0,0.0003378]
[1741878194306,0.27816973,82156.0,82155.0,0.0003378]
[1741878194828,0.5895276,82156.0,82155.0,0.0003378]
[1741878195102,0.60083398,82156.0,82155.0,0.0003378]
[1741878195635,0.69063455,82156.0,82155.0,0.0003378]
[1741878195815,0.69163455,82156.0,82155.0,0.0003378]
[1741878195966,0.72781817,82156.0,82155.0,0.0003378]
[1741878196314,0.72681817,82156.0,82155.0,0.0003378]
[1741878196549,0.72781817,82156.0,82155.0,0.0003378]
[1741878196763,0.74688807,82156.0,82155.0,0.0003378]
[1741878196927,0.74588807,82156.0,82155.0,0.0003378]
[1741878197146,0.74488807,82156.0,82155.0,0.0003378]
[1741878197542,0.74888807,82156.0,82155.0,0.0003378]
[1741878197946,0.74988807,82156.0,82155.0,0.0003378]
[1741878198152,0.75388807,82156.0,82155.0,0.0003378]
[1741878198922,0.74988807,82156.0,82155.0,0.0003378]
[1741878199331,0.555638,82147.0,82146.0,0.0003384]
[1741878200218,0.57471004,82147.0,82146.0,0.0003384]
[1741878200645,0.57871004,82147.0,82146.0,0.0003384]
[1741878200936,0.59001642,82147.0,82146.0,0.0003384]
[1741878201145,0.59301642,82147.0,82146.0,0.0003384]
[1741878201346,0.65175977,82147.0,82146.0,0.0003384]
[1741878203099,0.64775977,82147.0,82146.0,0.0003384]
[1741878203506,0.64875977,82147.0,82146.0,0.0003384]
[1741878203907,0.63268773,82147.0,82146.0,0.0003384]
[1741878205797,0.555644,82145.0,82144.0,0.0003378]
[1741878207013,0.3,82145.0,82144.0,0.0003378]
[1741878207163,0.07504973,82147.0,82145.0,0.243471]
[1741878207164,0.07904973,82147.0,82145.0,0.243471]
[1741878207361,0.07904973,82147.0,82144.0,0.0125108]
[1741878207362,0.07904973,82147.0,82146.0,1.5]
[1741878207587,0.03437724,82147.0,82146.0,1.5]
[1741878207789,0.03524386,82147.0,82146.0,1.497]
[1741878207991,0.03524386,82147.0,82146.0,1.493]
[1741878208407,0.012173,82145.0,82144.0,0.0003378]
[1741878209044,0.05699627,82147.0,82146.0,0.012173]
[1741878209251,0.03792541,82147.0,82146.0,0.39110009]
[1741878209470,0.03792541,82147.0,82146.0,0.38988284]
[1741878209671,0.01906941,82163.0,82162.0,0.255592]
[1741878209847,0.0003386,82167.0,82166.0,0.255579]
[1741878210049,0.0003386,82167.0,82166.0,0.38982084]
[1741878210461,0.0125086,82167.0,82166.0,0.13324184]
[1741878210876,0.0125086,82167.0,82166.0,0.11970099]
[1741878211197,0.012171,82162.0,82159.0,0.1516]
[1741878211397,0.0003386,82167.0,82166.0,0.243409]
[1741878211557,0.0003386,82167.0,82160.0,0.11970099]
[1741878211874,0.2437476,82167.0,82160.0,0.11970099]
[1741878212078,0.27498283,82167.0,82161.0,0.012171]
[1741878212277,0.01940383,82167.0,82166.0,0.01317]
[1741878212420,0.01940383,82167.0,82166.0,0.38982084]
[1741878213019,0.03157383,82167.0,82166.0,0.13424184]
[1741878213224,0.03157383,82167.0,82166.0,0.11970099]
[1741878213860,0.01940383,82167.0,82166.0,0.11970099]
[1741878214067,0.01940383,82167.0,82166.0,0.13187099]
[1741878214278,0.01940383,82167.0,82166.0,0.14641184]
[1741878214714,0.0003386,82167.0,82166.0,0.14641184]
[1741878215103,0.0003386,82167.0,82166.0,1.64762871]
[1741878215302,0.0003386,82167.0,82166.0,1.64741184]
[1741878215725,0.0003386,82167.0,82166.0,1.77751184]
[1741878216727,0.0003386,82167.0,82166.0,1.77851184]
[1741878216920,0.0003386,82167.0,82166.0,1.95368711]
[1741878217327,6e-07,82167.0,82166.0,1.95168711]
[1741878217506,6e-07,82167.0,82166.0,2.26168711]
[1741878217935,0.01906111,82202.0,82193.0,0.255495]
[1741878218281,0.012165,82200.0,82193.0,0.54113684]
[1741878218491,0.255475,82200.0,82193.0,0.54113684]
[1741878218641,0.26236611,82202.0,82193.0,0.54113684]
[1741878218969,0.01906111,82202.0,82193.0,2.04113684]
[1741878219375,0.255482,82197.0,82193.0,1.77110099]
[1741878219546,0.2558306,82194.0,82193.0,1.62170099]
[1741878219750,0.0003386,82194.0,82193.0,1.62170099]
[1741878220074,0.0003386,82194.0,82193.0,0.12170099]
[1741878220251,0.0125046,82194.0,82193.0,0.12170099]
[1741878220570,0.0003386,82194.0,82193.0,0.12170099]
[1741878220770,0.0125046,82194.0,82193.0,0.002]
[1741878220985,0.31372066,82194.0,82193.0,0.002]
[1741878221217,0.3125046,82194.0,82193.0,0.003]
[1741878221801,0.3125046,82194.0,82165.0,0.15156]
[1741878221802,0.01217,82169.0,82165.0,0.15156]
[1741878222056,0.255573,82169.0,82166.0,0.11970099]
[1741878222242,0.255549,82176.0,82171.0,0.012169]
[1741878222477,0.012168,82177.0,82166.0,0.11970099]
[1741878222693,0.243406,82167.0,82165.0,0.15156]
[1741878222869,0.01217,82166.0,82165.0,0.15156]
[1741878223064,0.02331272,82166.0,82165.0,0.15156]
[1741878223280,0.27463484,82169.0,82165.0,0.15156]
[1741878223750,0.255576,82168.0,82165.0,0.15156]
[1741878223932,0.01906384,82169.0,82165.0,0.40714]
[1741878224136,0.01906384,82169.0,82167.0,0.255574]
[1741878224656,0.01906384,82169.0,82166.0,0.243407]
[1741878224860,0.01906384,82169.0,82168.0,0.255573]
[1741878225064,0.01906384,82169.0,82165.0,0.15456]
[1741878225265,0.243356,82185.0,82179.0,0.012168]
[1741878225468,0.0003386,82194.0,82193.0,0.255495]
[1741878225723,0.0003386,82194.0,82191.0,0.255498]
[1741878225922,0.0003386,82194.0,82187.0,0.255511]
[1741878225923,0.04572267,82194.0,82187.0,0.255511]
[1741878226124,0.255495,82193.0,82192.0,1.5]
[1741878226633,0.012166,82193.0,82192.0,1.5]
[1741878226850,0.02342793,82193.0,82192.0,1.5]
[1741878227189,0.04595462,82193.0,82192.0,1.5]
[1741878227818,0.03378862,82193.0,82192.0,1.5]
[1741878228019,0.03378862,82193.0,82192.0,1.512166]
[1741878228221,0.03378862,82193.0,82192.0,1.64640784]
[1741878228378,0.03378862,82193.0,82192.0,1.63424184]
[1741878228579,0.03378862,82193.0,82192.0,1.64740784]
[1741878228786,0.02252669,82193.0,82192.0,1.64740784]
[1741878228983,0.02252669,82193.0,82192.0,1.63524184]
[1741878229191,0.27802169,82193.0,82192.0,1.63624184]
[1741878229409,0.02252669,82193.0,82192.0,1.63624184]
[1741878229625,0.02252669,82193.0,82192.0,1.64840784]
[1741878229871,0.0003386,82194.0,82193.0,0.27003585]
[1741878230062,0.0003386,82194.0,82193.0,0.38973684]
[1741878230675,0.0003386,82194.0,82193.0,0.46993684]
[1741878232396,0.0003386,82194.0,82193.0,0.47993684]
[1741878232604,0.0003386,82194.0,82193.0,0.54589684]
[1741878233010,0.0003386,82194.0,82193.0,0.55089684]
[1741878233213,0.2558306,82194.0,82193.0,0.12470099]
[1741878233435,0.0003386,82194.0,82193.0,0.12470099]
[1741878233644,0.0003386,82194.0,82193.0,0.13986699]
[1741878234084,0.0003386,82194.0,82193.0,0.13686699]
[1741878234294,0.0003386,82194.0,82193.0,0.13186699]
[1741878234792,0.0003386,82194.0,82193.0,0.12270099]
[1741878234995,0.0003386,82194.0,82193.0,0.39273684]
[1741878235194,0.0003386,82194.0,82193.0,1.88973684]
[1741878235395,0.0003386,82194.0,82193.0,1.89173684]
[1741878235770,0.0003386,82194.0,82193.0,1.89573684]
[1741878236091,0.0125046,82194.0,82193.0,1.62370099]
[1741878236291,0.03156294,82194.0,82193.0,1.62370099]
[1741878236497,0.01939694,82194.0,82193.0,1.62170099]
[1741878236894,0.01939694,82194.0,82193.0,1.63886699]
[1741878237129,0.01939694,82194.0,82193.0,1.64840784]
[1741878237425,0.01939694,82194.0,82193.0,1.63924184]
[1741878237643,0.26272294,82194.0,82193.0,1.62470099]
[1741878237769,0.01939694,82194.0,82193.0,1.62270099]
[1741878238229,0.01939694,82194.0,82193.0,1.62470099]
[1741878239041,0.01939694,82194.0,82193.0,1.63686699]
[1741878239404,0.01939694,82194.0,82193.0,1.62470099]
[1741878239629,0.01939694,82194.0,82193.0,1.63686699]
[1741878239997,0.04197732,82194.0,82193.0,1.63686699]
[1741878240460,0.02291898,82194.0,82193.0,1.65140784]
[1741878240609,0.02291898,82194.0,82193.0,1.72810784]
[1741878241387,0.02291898,82194.0,82193.0,1.72610784]
[1741878241589,0.02291898,82194.0,82193.0,1.73010784]
[1741878241866,0.0003386,82194.0,82193.0,1.73010784]
[1741878241999,0.0003386,82194.0,82193.0,1.65340784]
[1741878242341,0.0003386,82194.0,82193.0,1.64940784]
[1741878242542,0.0003386,82194.0,82193.0,1.65540784]
[1741878242688,0.0003386,82194.0,82193.0,1.65240784]
[1741878242884,0.0003386,82194.0,82193.0,1.64024184]
[1741878243130,0.0003386,82194.0,82193.0,1.64424184]
[1741878243397,0.0125046,82194.0,82193.0,1.62970099]
[1741878243792,0.0125046,82194.0,82193.0,0.015]
[1741878244000,0.0125046,82194.0,82193.0,0.006]
[1741878244197,0.0125046,82194.0,82193.0,0.012166]
[1741878244198,0.0003386,82194.0,82193.0,0.012166]
[1741878244402,0.0003386,82194.0,82193.0,0.14840784]
[1741878244757,0.0003386,82194.0,82193.0,0.15240784]
[1741878244970,0.02294035,82194.0,82193.0,0.1536243]
[1741878245143,0.02294035,82194.0,82193.0,1.64840784]
[1741878245340,0.02294035,82194.0,82193.0,1.65040784]
[1741878245875,0.02294035,82194.0,82193.0,1.64640784]
[1741878246052,0.02294035,82194.0,82193.0,1.63424184]
[1741878246273,0.02294035,82194.0,82193.0,1.65340784]
[1741878246623,0.02294035,82194.0,82193.0,1.64940784]
[1741878246807,0.02294035,82194.0,82193.0,1.65440784]
[1741878247259,0.02294035,82194.0,82193.0,1.64940784]
[1741878247834,0.0003386,82194.0,82193.0,1.64940784]
[1741878248041,0.0003386,82194.0,82193.0,1.65340784]
[1741878248473,0.0003386,82194.0,82193.0,1.63724184]
[1741878248704,0.0003386,82194.0,82193.0,1.79936784]
[1741878248873,0.0003386,82194.0,82193.0,1.65240784]
[1741878249425,0.0003386,82194.0,82193.0,1.64940784]
[1741878250137,0.0003386,82194.0,82193.0,1.64640784]
[1741878250340,0.02291925,82194.0,82193.0,1.65140784]
[1741878250511,0.02291925,82194.0,82193.0,1.63924184]
[1741878250717,0.03508525,82194.0,82193.0,1.63441114]
[1741878250944,0.03508525,82194.0,82193.0,1.63841114]
[1741878251150,0.04197815,82194.0,82193.0,1.64141114]
[1741878251326,0.29747015,82194.0,82193.0,1.62687029]
[1741878251524,0.29747015,82194.0,82193.0,1.5031693]
[1741878252447,0.29747015,82194.0,82193.0,0.0051693]
[1741878253569,0.04197815,82194.0,82193.0,0.0051693]
[1741878253800,0.04197815,82194.0,82193.0,0.13703629]
[1741878254020,0.04197815,82194.0,82193.0,0.12487029]
[1741878254216,0.05414415,82194.0,82193.0,0.0051693]
[1741878255165,0.06543301,82194.0,82193.0,1.5051693]
[1741878257291,0.06543301,82194.0,82193.0,0.0051693]
[1741878257518,0.47597411,82194.0,82193.0,0.0051693]
[1741878257715,0.56296097,82194.0,82193.0,0.0051693]
[1741878257891,0.56296097,82194.0,82193.0,3e-07]
[1741878258073,0.012167,82188.0,82187.0,0.0001693]
[1741878258295,0.555511,82188.0,82187.0,0.0001693]
[1741878258660,0.25561,82156.0,82155.0,0.0001693]
[1741878258878,0.012171,82162.0,82155.0,0.0123413]
[1741878259079,0.243386,82174.0,82168.0,0.01217]
[1741878259282,0.012169,82173.0,82166.0,0.01217]
[1741878259625,0.012171,82159.0,82156.0,1.5]
[1741878259829,0.243433,82158.0,82156.0,1.5]
[1741878260080,0.012171,82156.0,82155.0,0.0001693]
[1741878260186,0.25561,82156.0,82155.0,0.0001693]
[1741878261036,0.26689886,82156.0,82155.0,0.0001693]
[1741878261606,0.30854758,82156.0,82155.0,0.0001693]
[1741878261809,0.30854758,82156.0,82155.0,0.0031693]
[1741878262207,0.30854758,82156.0,82155.0,0.0021693]
[1741878262799,0.05293758,82156.0,82155.0,0.0021693]
[1741878263668,0.05293758,82156.0,82155.0,0.0001693]
[1741878263871,0.05293758,82156.0,82155.0,0.11987029]
[1741878263984,0.30854758,82156.0,82155.0,0.0021693]
[1741878264346,0.05293758,82156.0,82155.0,0.0021693]
[1741878264553,0.03386951,82156.0,82155.0,0.14980023]
[1741878264724,0.012166,82190.0,82155.0,0.14980023]
[1741878264725,0.012166,82191.0,82181.0,0.012168]
[1741878264940,0.012168,82178.0,82174.0,0.1494]
[1741878265134,0.012168,82177.0,82174.0,0.1494]
[1741878265331,1.17286259,82210.0,82174.0,0.1494]
[1741878265332,0.243362,82182.0,82177.0,0.243374]
[1741878265530,0.25553,82182.0,82181.0,1.5]
[1741878266072,0.255579,82166.0,82165.0,0.1494]
[1741878266488,0.243407,82167.0,82165.0,0.1494]
[1741878266624,0.243403,82168.0,82165.0,0.1494]
[1741878266828,0.255579,82166.0,82165.0,0.1494]
[1741878267031,0.012171,82160.0,82159.0,0.14944]
[1741878267229,0.012171,82160.0,82155.0,0.0001693]
[1741878267230,0.255609,82157.0,82155.0,0.0001693]
[1741878267512,0.012171,82156.0,82155.0,0.0001693]
[1741878268475,0.01906616,82160.0,82155.0,0.2436083]
[1741878268682,0.01906616,82160.0,82155.0,0.2557803]
[1741878268925,0.01906616,82160.0,82157.0,0.255607]
[1741878269136,0.01906616,82160.0,82155.0,0.0123413]
[1741878269137,0.01906616,82160.0,82155.0,0.0001693]
[1741878269385,0.01906616,82160.0,82155.0,0.11987029]
[1741878269505,0.01906616,82160.0,82159.0,0.02671185]
[1741878269708,0.012168,82180.0,82163.0,0.01217]
[1741878269709,0.243397,82171.0,82163.0,0.01217]
[1741878269907,0.26246567,82170.0,82164.0,0.26890099]
[1741878270152,0.01906667,82170.0,82164.0,0.26890099]
[1741878270360,0.01906667,82170.0,82167.0,0.243404]
[1741878270584,0.01906667,82170.0,82167.0,0.11970099]
[1741878270784,0.26246667,82170.0,82167.0,0.11970099]
[1741878270942,0.243403,82168.0,82167.0,0.11970099]
[1741878271148,0.01906667,82170.0,82167.0,0.11970099]
[1741878271353,0.01906667,82170.0,82169.0,0.25557]
[1741878271561,0.0003386,82194.0,82189.0,0.012167]
[1741878271767,0.0003386,82194.0,82183.0,0.012167]
[1741878271965,0.012169,82175.0,82169.0,0.11970099]
[1741878272165,0.012168,82180.0,82170.0,0.26890099]
[1741878272166,0.012168,82177.0,82170.0,0.26890099]
[1741878272371,0.012169,82171.0,82170.0,0.11970099]
[1741878272570,0.01217,82165.0,82157.0,0.01454085]
[1741878272771,0.012171,82160.0,82159.0,0.01454085]
[1741878272971,0.012171,82161.0,82159.0,0.13424184]
[1741878272972,0.255596,82161.0,82159.0,0.13424184]
[1741878273177,0.012169,82174.0,82163.0,0.01217]
[1741878273417,0.255557,82174.0,82169.0,0.0001692]
[1741878273574,0.25556,82173.0,82169.0,0.0001692]
[1741878273777,0.243396,82171.0,82169.0,0.0001692]
[1741878274037,0.255566,82170.0,82169.0,0.0001692]
[1741878275110,0.255566,82170.0,82169.0,0.0011692]
[1741878275291,0.243382,82176.0,82169.0,0.0011692]
[1741878275292,0.012167,82189.0,82170.0,0.01454085]
[1741878275491,0.012166,82192.0,82184.0,0.012167]
[1741878275695,0.012166,82192.0,82175.0,0.243381]
[1741878275696,0.255528,82183.0,82176.0,0.255546]
[1741878275903,0.012168,82182.0,82176.0,0.11970099]
[1741878276111,0.255544,82178.0,82176.0,0.11970099]
[1741878276337,0.012169,82173.0,82169.0,0.0011692]
[1741878276537,0.243397,82170.0,82169.0,0.12087019]
[1741878276739,0.255565,82171.0,82169.0,0.12087019]
[1741878276944,0.012169,82170.0,82169.0,0.0011692]
[1741878277155,0.32341614,82170.0,82169.0,0.0011692]
[1741878277528,0.45374009,82170.0,82169.0,0.0011692]
[1741878277705,0.45374009,82170.0,82169.0,0.0001692]
[1741878277923,0.36497645,82170.0,82169.0,0.0001692]
[1741878278123,0.36597645,82170.0,82169.0,0.0001692]
[1741878278687,0.36497645,82170.0,82169.0,0.0001692]
[1741878278894,0.45374009,82170.0,82169.0,0.0001692]
[1741878279075,0.45774009,82170.0,82169.0,0.0001692]
[1741878279279,0.45974009,82170.0,82169.0,0.0001692]
[1741878279631,0.45774009,82170.0,82169.0,0.0001692]
[1741878280623,0.45374009,82170.0,82169.0,0.0001692]
[1741878280828,0.45674009,82170.0,82169.0,0.0001692]
[1741878281179,0.36697645,82170.0,82169.0,0.0001692]
[1741878281405,0.36497645,82170.0,82169.0,0.0001692]
[1741878281723,0.36997645,82170.0,82169.0,0.0001692]
[1741878282012,0.37497645,82170.0,82169.0,0.0001692]
[1741878283282,0.36372931,82170.0,82169.0,0.0001692]
[1741878286475,0.45249295,82170.0,82169.0,0.0001692]
[1741878287770,0.36372931,82170.0,82169.0,0.0001692]
[1741878289509,0.34123528,82170.0,82169.0,0.0001692]
[1741878290911,0.02906628,82170.0,82169.0,0.0001692]
[1741878291111,0.02906628,82170.0,82169.0,0.0123392]
[1741878291112,0.005,82170.0,82169.0,0.0123392]
[1741878291321,0.012169,82174.0,82169.0,0.0001692]
[1741878291495,0.003,82170.0,82169.0,0.0001692]
[1741878291695,0.007,82170.0,82169.0,0.0001692]
[1741878291950,0.019169,82170.0,82169.0,0.0001692]
[1741878292105,0.015169,82170.0,82169.0,0.0001692]
[1741878292312,0.012169,82170.0,82169.0,0.0001692]
[1741878292627,0.002,82170.0,82169.0,0.0001692]
[1741878293051,0.012169,82170.0,82169.0,0.0001692]
[1741878293250,0.03471639,82170.0,82169.0,0.0001692]
[1741878293653,0.03671639,82170.0,82169.0,0.0001692]
[1741878294130,0.05578145,82170.0,82169.0,0.0001692]
[1741878294334,0.04461245,82170.0,82169.0,0.2435692]
[1741878294536,0.05678145,82170.0,82169.0,0.0001692]
[1741878294737,0.04461245,82170.0,82169.0,0.0123392]
[1741878295291,0.04461245,82170.0,82169.0,1.5123392]
[1741878295474,0.02554739,82170.0,82169.0,1.64658104]
[1741878295650,0.02554739,82170.0,82169.0,1.72628104]
[1741878296750,0.02554739,82170.0,82169.0,1.63204019]
[1741878296966,0.003,82170.0,82169.0,1.63204019]
[1741878297355,0.002,82170.0,82169.0,1.63204019]
[1741878297554,0.002,82170.0,82169.0,1.64658104]
[1741878298008,0.002,82170.0,82169.0,1.63441104]
[1741878298764,0.012169,82171.0,82169.0,0.11987019]
[1741878299158,0.02253032,82175.0,82174.0,0.012169]
[1741878299361,0.02253032,82175.0,82174.0,0.14441084]
[1741878299800,0.03379982,82175.0,82174.0,0.14441084]
[1741878299940,0.03379982,82175.0,82174.0,0.13424184]
[1741878300355,0.03379982,82175.0,82174.0,0.14641084]
[1741878300556,0.243385,82174.0,82169.0,0.0001692]
[1741878300786,0.255559,82173.0,82169.0,0.11987019]
[1741878300986,0.255557,82173.0,82169.0,0.11987019]
[1741878301196,0.012169,82170.0,82169.0,0.0001692]
[1741878301484,0.312169,82170.0,82169.0,0.0001692]
[1741878301713,0.312169,82170.0,82155.0,0.0001693]
[1741878301714,0.55561,82156.0,82155.0,0.0001693]
[1741878302541,0.73548344,82156.0,82155.0,0.0001693]
[1741878302723,0.75455436,82156.0,82155.0,0.0001693]
[1741878303087,0.77708468,82156.0,82155.0,0.0001693]
[1741878305110,0.69128411,82156.0,82155.0,0.0001693]
[1741878305320,0.69628411,82156.0,82155.0,0.0001693]
[1741878305544,0.36187411,82156.0,82155.0,0.0001693]
[1741878305746,0.37404511,82156.0,82155.0,0.0001693]
[1741878306181,0.04280319,82156.0,82155.0,0.0001693]
[1741878306740,0.04280319,82156.0,82155.0,0.13204229]
[1741878307146,0.07890248,82156.0,82155.0,0.13204229]
[1741878307697,0.07390248,82156.0,82155.0,0.13204229]
[1741878307938,0.07490248,82156.0,82155.0,0.13204229]
[1741878308345,0.06990248,82156.0,82155.0,0.13204229]
[1741878308662,0.03380319,82156.0,82155.0,0.13204229]
[1741878308867,0.03380319,82156.0,82155.0,0.0001693]
[1741878309126,0.03380319,82156.0,82155.0,0.37548429]
[1741878309335,0.05287075,82156.0,82155.0,0.37548429]
[1741878309713,0.05287075,82156.0,82155.0,0.0001693]
[1741878309917,0.30848075,82156.0,82155.0,0.0001693]
[1741878310909,0.06504175,82156.0,82155.0,0.0001693]
[1741878311112,0.30848075,82156.0,82155.0,0.0001693]
[1741878311316,0.08899886,82156.0,82155.0,0.0001693]
[1741878311523,0.08899886,82156.0,82155.0,0.0123413]
[1741878311739,0.08999886,82156.0,82155.0,0.13204229]
[1741878311955,0.09199886,82156.0,82155.0,0.13204229]
[1741878312158,0.09199886,82156.0,82155.0,0.0001693]
[1741878312405,0.09199886,82156.0,82155.0,0.0123413]
[1741878312406,0.08999886,82156.0,82155.0,0.0123413]
[1741878312576,0.05287075,82156.0,82155.0,0.0123413]
[1741878312905,0.06504175,82156.0,82155.0,0.0001693]
[1741878313385,0.05287075,82156.0,82155.0,0.0001693]
[1741878313589,0.06504175,82156.0,82155.0,0.0001693]